fUST/lending_fUST_20240619
["ID","MTS","AMOUNT","RATE_DAILY","PERIOD"]
[329863823,1718771449743,-1000.0,0.00016712,2]
[329863825,1718771449752,-1000.0,0.00016712,2]
[329863827,1718771449761,-1000.0,0.00016712,2]
[329863829,1718771449770,-534.22069128,0.00016712,2]
[329864009,1718771837445,239.41,0.00010959,2]
[329864010,1718771847942,199.51,0.00010959,2]
[329864011,1718771858478,166.26,0.00010959,2]
[329864012,1718771869210,831.32,0.00010959,2]
[329864013,1718771923030,16235.74785273,0.00010959,2]
[329864014,1718771945015,488.25849034,0.00010959,2]
[329864019,1718772077832,398.3217732,0.00025,60]
[329864023,1718772435134,-212.189693,0.00015436,2]
[329864024,1718772441285,-87.810307,0.00015436,2]
[329864025,1718772441307,-130.9132052,0.00015436,2]
[329864032,1718772549123,-300.0,0.00015436,2]
[329864033,1718772549144,-264.0,0.00015436,2]
[329864034,1718772549167,-23191.1751207,0.00015437,2]
[329864081,1718772632979,-1165.83948773,0.000159,2]
[329864083,1718772632989,-220.31810551,0.00016,2]
[329864085,1718772633001,-914.03378746,0.00016,2]
[329864318,1718772638701,-13874.11440249,0.00016,2]
[329864339,1718772643474,-678.95793225,0.00016,2]
[329864358,1718772646654,-893.73484274,0.00016,2]
[329864359,1718772720990,183.3896945,9.999e-05,2]
[329864360,1718772721012,165.03575635,9.999e-05,2]
[329864361,1718772721035,249.74185975,9.999e-05,2]
[329864362,1718772721055,273.37336231,9.999e-05,2]
[329864363,1718772721078,7069.34020041,9.999e-05,2]
[329864364,1718772746965,273.37336231,9.9e-05,2]
[329864367,1718773152175,163.83118806,0.00025,60]
[329864369,1718773518000,-2017.84347367,0.00015823,2]
[329864370,1718773518022,-5272.58203083,0.00015824,2]
[329864371,1718773518043,-15.1744955,0.00015997,2]
[329864373,1718773615614,273.37336231,9.9e-05,2]
[329864374,1718773651126,-154.81422293,0.00015996,2]
[329864375,1718773660152,273.37336231,9.9e-05,2]
[329864376,1718773669366,273.37336231,9.9e-05,2]
[329864377,1718773678134,273.37336231,9.9e-05,2]
[329864378,1718773686200,273.37336231,9.9e-05,2]
[329864379,1718773694940,273.37336231,9.9e-05,2]
[329864380,1718773704319,273.37336231,9.9e-05,2]
[329864381,1718773712568,273.37336231,9.9e-05,2]
[329864382,1718773720802,273.37336231,9.9e-05,2]
[329864383,1718773728893,273.37336231,9.9e-05,2]
[329864384,1718773736854,273.37336231,9.9e-05,2]
[329864385,1718773745423,273.37336231,9.9e-05,2]
[329864386,1718773754221,207.55502197,9.9e-05,2]
[329864387,1718773754247,65.81834034,9.9e-05,2]
[329864388,1718773764227,-1051.29644978,0.00015053,2]
[329864389,1718773764250,-200.0,0.00015053,2]
[329864390,1718773764271,-22862.4250642,0.00015054,2]
[329864391,1718773769996,263.84929444,9.9e-05,2]
[329864392,1718773770020,9.52406787,9.9e-05,2]
[329864393,1718773777976,175.680528,9.9e-05,2]
[329864394,1718773777999,97.69283431,9.9e-05,2]
[329864395,1718773786258,146.62228459,9.9e-05,2]
[329864396,1718773786285,126.75107772,9.9e-05,2]
[329864397,1718773794539,273.37336231,9.9e-05,2]
[329864398,1718773817930,273.37336231,9.9e-05,2]
[329864399,1718773825917,273.37336231,9.9e-05,2]
[329864428,1718773834137,273.37336231,9.9e-05,2]
[329864442,1718773838638,-359.98,0.00015997,2]
[329864443,1718773838723,-4223.74627157,0.00015997,2]
[329864444,1718773838732,-165.03575635,0.00015998,2]
[329864445,1718773838742,-728.55058761,0.00015998,2]
[329864465,1718773840982,-322.74586217,0.00015998,2]
[329864466,1718773840992,-294.90147988,0.00015999,2]
[329864467,1718773841001,-3406.31384077,0.00016,2]
[329864472,1718773843014,273.37336231,9.9e-05,2]
[329864538,1718773844176,-6583.56310856,0.00016,2]
[329864704,1718773847072,-419.78061731,0.00016,2]
[329865085,1718773851417,273.37336231,9.9e-05,2]
[329865181,1718773859422,273.37336231,9.9e-05,2]
[329865182,1718773963482,200.59,0.0002739,120]
[329865183,1718773963504,212.07,0.0002739,120]
[329865184,1718773963524,174.74,0.0002739,120]
[329865185,1718773970451,0.04,0.0002739,120]
[329865240,1718774649115,1051.29644978,9.999e-05,2]
[329865241,1718774651667,1051.29644978,9.999e-05,2]
[329865242,1718774654278,1051.29644978,9.999e-05,2]
[329865243,1718774656605,1051.29644978,9.999e-05,2]
[329865244,1718774659100,1051.29644978,9.999e-05,2]
[329865245,1718774662178,1051.29644978,9.999e-05,2]
[329865246,1718774666312,1051.29644978,9.999e-05,2]
[329865247,1718774668600,1051.29644978,9.999e-05,2]
[329865248,1718774671095,1051.29644978,9.999e-05,2]
[329865249,1718774675674,1051.29644978,9.999e-05,2]
[329865250,1718774680096,1051.29644978,9.999e-05,2]
[329865251,1718774850150,-169.6960448,0.00014647,2]
[329865252,1718774850171,-275.0633211,0.00014699,2]
[329865253,1718774850193,-342.9951844,0.00014855,2]
[329865254,1718774850213,-109.61635486,0.00014997,2]
[329865255,1718774854086,-134.69876404,0.00014997,2]
[329865256,1718774854107,-178.39747093,0.00015045,2]
[329865257,1718774895680,273.37336231,9.9e-05,2]
[329865258,1718774904342,273.37336231,9.9e-05,2]
[329865259,1718774913144,273.37336231,9.9e-05,2]
[329865260,1718774921948,273.37336231,9.9e-05,2]
[329865262,1718774950083,-279.253237,0.00015,2]
[329865263,1718774956295,-8.38370641,0.00015,2]
[329865264,1718774961120,-155.56202691,0.00015044,2]
[329865265,1718774961140,-2832.64303181,0.00015044,2]
[329865266,1718774961160,-300.0,0.00015045,2]
[329865267,1718774961181,-12258.2975721,0.00015046,2]
[329865268,1718774961201,-589.39328764,0.000156,2]
[329865271,1718774971124,-154.1560446,0.000158,2]
[329865272,1718774971155,-194.12908571,0.000158,2]
[329865322,1718775032931,-11.46791439,0.000158,2]
[329865323,1718775032941,-153.0,0.000158,2]
[329865324,1718775032950,-306.0,0.000158,2]
[329865325,1718775032959,-227.1115978,0.000158,2]
[329865326,1718775032968,-1188.81465781,0.00015833,2]
[329865327,1718775032977,-205.5970001,0.00015878,2]
[329865328,1718775032986,-153.0,0.00015878,2]
[329865329,1718775032995,-205.5970001,0.00015878,2]
[329865330,1718775033004,-153.0,0.00015878,2]
[329865331,1718775033013,-1002.85194933,0.000159,2]
[329865332,1718775033023,-153.0,0.00015978,2]
[329865333,1718775033033,-636.5613204,0.00015996,4]
[329865334,1718775033042,-208.09859969,0.00015998,2]
[329865335,1718775033051,-348.28513031,0.00015999,2]
[329865336,1718775033060,-21619.39117109,0.00016,2]
[329865337,1718775033073,-706.99,0.00016,2]
[329865338,1718775033090,-337.93781919,0.00016,2]
[329865575,1718775038932,-344.76437263,0.00016,2]
[329865576,1718775038942,-153.0,0.00016,2]
[329865577,1718775038951,-421.18990875,0.00016435,2]
[329865578,1718775038961,-19606.13439594,0.00016437,2]
[329865579,1718775038971,-505.12316328,0.00016438,2]
[329865580,1718775038980,-510.7707195,0.00016438,2]
[329865581,1718775038990,-645.87,0.00016438,2]
[329865582,1718775038999,-500.0,0.00016438,2]
[329865583,1718775039009,-524.20013948,0.00016438,2]
[329865584,1718775039019,-524.95604896,0.00016438,2]
[329865585,1718775039033,-506.26409566,0.00016438,2]
[329865586,1718775039044,-454.06771949,0.00016438,2]
[329865587,1718775039055,-502.47572528,0.00016438,2]
[329865588,1718775039065,-500.0,0.00016438,2]
[329865589,1718775039076,-505.63163605,0.00016438,2]
[329865590,1718775039087,-500.0,0.00016438,2]
[329865591,1718775039097,-500.0,0.00016438,2]
[329865592,1718775039107,-502.60259629,0.00016438,2]
[329865593,1718775039121,-500.67327137,0.00016438,2]
[329865594,1718775039132,-505.1641777,0.00016438,2]
[329865595,1718775039143,-532.13062325,0.00016438,2]
[329865596,1718775039154,-500.0,0.00016438,2]
[329865597,1718775039164,-502.11574108,0.00016438,2]
[329865598,1718775039174,-500.0,0.00016438,2]
[329865599,1718775039184,-500.0,0.00016438,2]
[329865600,1718775039194,-500.0,0.00016438,2]
[329865601,1718775039204,-504.38301024,0.00016438,2]
[329865602,1718775039214,-164.23598076,0.00016438,2]
[329865603,1718775039224,-501.99590272,0.00016438,2]
[329865604,1718775039235,-507.62536049,0.00016438,2]
[329865605,1718775039245,-156.008132,0.00016438,2]
[329865606,1718775039256,-190.159889,0.00016438,2]
[329865607,1718775039266,-500.0,0.00016438,2]
[329865608,1718775039277,-501.99710789,0.00016438,2]
[329865609,1718775039287,-502.5400818,0.00016438,2]
[329865610,1718775039297,-500.0,0.00016438,2]
[329865611,1718775039307,-506.48775656,0.00016438,2]
[329865612,1718775039318,-507.42140896,0.00016438,2]
[329865613,1718775039327,-1005.22664488,0.00016438,2]
[329865614,1718775039337,-500.0,0.00016438,2]
[329865615,1718775039347,-502.5932284,0.00016438,2]
[329865616,1718775039356,-508.03816324,0.00016438,2]
[329865617,1718775039367,-503.02679361,0.00016438,2]
[329865618,1718775039376,-454.10900524,0.00016438,2]
[329865619,1718775039386,-500.0,0.00016438,2]
[329865620,1718775039396,-500.0,0.00016438,2]
[329865621,1718775039408,-500.0,0.00016438,2]
[329865622,1718775039418,-500.0,0.00016438,2]
[329865623,1718775039428,-500.0,0.00016438,2]
[329865624,1718775039438,-500.0,0.00016438,2]
[329865625,1718775039448,-500.0,0.00016438,2]
[329865626,1718775039458,-521.51116502,0.00016438,2]
[329865627,1718775039468,-500.0,0.00016438,2]
[329865628,1718775039480,-500.0,0.00016438,2]
[329865629,1718775039491,-151.0,0.00016438,2]
[329865630,1718775039500,-151.0,0.00016438,2]
[329865631,1718775039511,-500.0,0.00016438,2]
[329865632,1718775039520,-500.0,0.00016438,2]
[329865633,1718775039533,-500.0,0.00016438,2]
[329865634,1718775039543,-537.76597428,0.00016438,2]
[329865635,1718775039554,-500.0,0.00016438,2]
[329865636,1718775039564,-151.0,0.00016438,2]
[329865637,1718775039575,-151.0,0.00016438,2]
[329865639,1718775039584,-425.10917403,0.00016438,2]
[329865641,1718775039595,-500.0,0.00016438,2]
[329865643,1718775039607,-500.0,0.00016438,2]
[329865645,1718775039618,-500.0,0.00016438,2]
[329865660,1718775039628,-260.13618047,0.00016438,2]
[329865665,1718775039819,-267.62716747,0.00016438,2]
[329865667,1718775039828,-500.0,0.00016438,2]
[329865668,1718775039839,-500.0,0.00016438,2]
[329865669,1718775039849,-329.74411361,0.00016438,2]
[329865670,1718775039859,-149.3940151,0.00016438,2]
[329865671,1718775039872,-1.6059849,0.00016438,2]
[329865672,1718775039882,-151.0,0.00016438,2]
[329865673,1718775039892,-151.0,0.00016438,2]
[329865674,1718775039902,-151.0,0.00016438,2]
[329865675,1718775039912,-151.0,0.00016438,2]
[329865676,1718775039922,-151.0,0.00016438,2]
[329865678,1718775039931,-500.0,0.00016438,2]
[329865680,1718775039941,-946.31,0.00016438,2]
[329865682,1718775039951,-712.9399896,0.00016438,2]
[329865684,1718775039964,-981.19493176,0.00016438,2]
[329865782,1718775043364,-552.21507864,0.00016438,2]
[329865784,1718775043374,-1636.1,0.00016438,2]
[329865786,1718775043384,-595.57,0.00016438,2]
[329865788,1718775043393,-500.0,0.00016438,2]
[329865790,1718775043403,-500.0,0.00016438,2]
[329865792,1718775043412,-500.0,0.00016438,2]
[329865794,1718775043421,-500.0,0.00016438,2]
[329865796,1718775043432,-774.875594,0.00016438,2]
[329865798,1718775043442,-500.0,0.00016438,2]
[329865800,1718775043451,-774.875594,0.00016438,2]
[329865802,1718775043461,-774.875594,0.00016438,2]
[329865804,1718775043470,-502.05529289,0.00016438,2]
[329865805,1718775043479,-774.875594,0.00016438,2]
[329865807,1718775043490,-774.875594,0.00016438,2]
[329865809,1718775043499,-617.17,0.00016438,2]
[329865811,1718775043509,-774.875594,0.00016438,2]
[329865813,1718775043519,-1557.569582,0.00016438,2]
[329865815,1718775043529,-1557.569582,0.00016438,2]
[329865817,1718775043538,-1557.569582,0.00016438,2]
[329865819,1718775043548,-2843.3,0.00016438,2]
[329865821,1718775043558,-5139.57,0.00016438,2]
[329865823,1718775043568,-546.79530913,0.00016438,2]
[329865825,1718775043577,-504.49773037,0.00016438,2]
[329865827,1718775043587,-500.0,0.00016438,2]
[329865830,1718775043597,-500.0,0.00016438,2]
[329865832,1718775043607,-500.0,0.00016438,2]
[329865834,1718775043620,-500.0,0.00016438,2]
[329865837,1718775043629,-509.17000031,0.00016438,2]
[329865840,1718775043639,-500.0,0.00016438,2]
[329865843,1718775043648,-500.0,0.00016438,2]
[329865846,1718775043658,-500.0,0.00016438,2]
[329865849,1718775043668,-502.13057227,0.00016438,2]
[329865852,1718775043678,-501.64454582,0.00016438,2]
[329865854,1718775043689,-505.10865373,0.00016438,2]
[329865857,1718775043699,-500.0,0.00016438,2]
[329865860,1718775043709,-500.0,0.00016438,2]
[329865863,1718775043718,-500.0,0.00016438,2]
[329865865,1718775043727,-502.60498839,0.00016438,2]
[329865867,1718775043737,-151.0,0.00016438,2]
[329865869,1718775043746,-151.0,0.00016438,2]
[329865872,1718775043755,-151.0,0.00016438,2]
[329865874,1718775043766,-500.0,0.00016438,2]
[329865876,1718775043776,-500.0,0.00016438,2]
[329865878,1718775043786,-504.01991438,0.00016438,2]
[329865880,1718775043796,-500.0,0.00016438,2]
[329865882,1718775043806,-500.0,0.00016438,2]
[329865884,1718775043816,-500.0,0.00016438,2]
[329865886,1718775043825,-359.98818668,0.00016438,2]
[329865888,1718775043835,-500.0,0.00016438,2]
[329865890,1718775043844,-501.90171923,0.00016438,2]
[329865892,1718775043855,-503.62173756,0.00016438,2]
[329865894,1718775043864,-500.0,0.00016438,2]
[329865896,1718775043874,-354.119766,0.00016438,2]
[329865897,1718775043883,-354.119766,0.00016438,2]
[329865899,1718775043893,-354.119766,0.00016438,2]
[329865901,1718775043902,-354.119766,0.00016438,2]
[329865903,1718775043911,-354.119766,0.00016438,2]
[329865905,1718775043921,-354.119766,0.00016438,2]
[329865907,1718775043930,-659.93,0.00016438,2]
[329865909,1718775043940,-500.0,0.00016438,2]
[329865911,1718775043950,-502.6923686,0.00016438,2]
[329865913,1718775043959,-500.0,0.00016438,2]
[329865915,1718775043969,-500.0,0.00016438,2]
[329865917,1718775043979,-502.81223827,0.00016438,2]
[329865919,1718775043989,-500.0,0.00016438,2]
[329865921,1718775043998,-500.0,0.00016438,2]
[329865923,1718775044007,-735.79,0.00016438,2]
[329865925,1718775044017,-500.0,0.00016438,2]
[329865927,1718775044027,-500.0,0.00016438,2]
[329865929,1718775044036,-501.78230932,0.00016438,2]
[329865931,1718775044047,-500.0,0.00016438,2]
[329865933,1718775044058,-1000.0,0.00016438,2]
[329865934,1718775044067,-1000.0,0.00016438,2]
[329865936,1718775044078,-1000.0,0.00016438,2]
[329865938,1718775044087,-597.332514,0.00016438,2]
[329865940,1718775044097,-500.0,0.00016438,2]
[329865942,1718775044106,-511.47883437,0.00016438,2]
[329865944,1718775044117,-500.0,0.00016438,2]
[329865946,1718775044127,-500.0,0.00016438,2]
[329865948,1718775044136,-151.0,0.00016438,2]
[329865950,1718775044146,-151.0,0.00016438,2]
[329865952,1718775044156,-198.321462,0.00016438,2]
[329865954,1718775044165,-500.0,0.00016438,2]
[329865956,1718775044175,-500.0,0.00016438,2]
[329865958,1718775044185,-404.42716658,0.00016438,2]
[329865960,1718775044195,-500.0,0.00016438,2]
[329865962,1718775044204,-500.0,0.00016438,2]
[329865964,1718775044216,-605.42,0.00016438,2]
[329865966,1718775044226,-151.0,0.00016438,2]
[329865968,1718775044235,-151.0,0.00016438,2]
[329865970,1718775044244,-151.0,0.00016438,2]
[329865972,1718775044254,-500.0,0.00016438,2]
[329865974,1718775044263,-151.0,0.00016438,2]
[329865976,1718775044274,-500.0,0.00016438,2]
[329865978,1718775044286,-611.37370585,0.00016438,2]
[329865981,1718775044295,-500.0,0.00016438,2]
[329865983,1718775044304,-500.0,0.00016438,2]
[329865985,1718775044313,-1147.72325,0.00016438,2]
[329865987,1718775044323,-1147.72325,0.00016438,2]
[329865988,1718775044333,-47.49771974,0.00016438,2]
[329866471,1718775049422,-636.5613204,0.00016438,2]
[329868096,1718775066576,209.02221399,0.0001548,2]
[329869392,1718775439358,2934.21938775,0.0001522,14]
[329869401,1718775942830,273.37336231,9.9e-05,2]
[329869402,1718775943134,10000.0,0.00025,60]
[329869403,1718775951528,273.37336231,9.9e-05,2]
[329869404,1718775960617,273.37336231,9.9e-05,2]
[329869405,1718775962750,263.0,0.00025,60]
[329869406,1718775968771,273.37336231,9.9e-05,2]
[329869407,1718775976991,273.37336231,9.9e-05,2]
[329869408,1718775985024,273.37336231,9.9e-05,2]
[329869409,1718775993807,273.37336231,9.9e-05,2]
[329869410,1718776002384,273.37336231,9.9e-05,2]
[329869411,1718776010770,273.37336231,9.9e-05,2]
[329869412,1718776018658,273.37336231,9.9e-05,2]
[329869413,1718776027000,273.37336231,9.9e-05,2]
[329869414,1718776033090,-212.189693,0.00015148,2]
[329869415,1718776035692,273.37336231,9.9e-05,2]
[329869416,1718776036091,-65.767388,0.00015148,2]
[329869417,1718776036112,-152.9561242,0.00015324,2]
[329869418,1718776041103,-190.159889,0.00015324,2]
[329869419,1718776044392,273.37336231,9.9e-05,2]
[329869420,1718776053042,273.37336231,9.9e-05,2]
[329869421,1718776061977,273.37336231,9.9e-05,2]
[329869422,1718776070045,273.37336231,9.9e-05,2]
[329869423,1718776078405,273.37336231,9.9e-05,2]
[329869424,1718776087557,273.37336231,9.9e-05,2]
[329869425,1718776095843,273.37336231,9.9e-05,2]
[329869426,1718776105040,273.37336231,9.9e-05,2]
[329869427,1718776113253,273.37336231,9.9e-05,2]
[329869428,1718776121403,273.37336231,9.9e-05,2]
[329869430,1718776130877,273.37336231,9.9e-05,2]
[329869431,1718776138890,273.37336231,9.9e-05,2]
[329869432,1718776147223,273.37336231,9.9e-05,2]
[329869433,1718776155230,273.37336231,9.9e-05,2]
[329869434,1718776162089,-3227.209891,0.00015324,2]
[329869435,1718776162110,-301.6614307,0.00015376,2]
[329869436,1718776162130,-156.13150691,0.0001548,2]
[329869437,1718776164223,251.65717139,9.9e-05,2]
[329869438,1718776164249,21.71619092,9.9e-05,2]
[329869439,1718776172349,153.0,9.9e-05,2]
[329869440,1718776172370,120.37336231,9.9e-05,2]
[329869441,1718776181299,129.36849744,9.9e-05,2]
[329869442,1718776181322,144.00486487,9.9e-05,2]
[329869443,1718776189485,4.62686526,9.9e-05,2]
[329869444,1718776189510,268.74649705,9.9e-05,2]
[329869446,1718776198382,273.37336231,9.9e-05,2]
[329869447,1718776206441,273.37336231,9.9e-05,2]
[329869448,1718776215471,273.37336231,9.9e-05,2]
[329869449,1718776224292,273.37336231,9.9e-05,2]
[329869530,1718776232519,273.37336231,9.9e-05,2]
[329869562,1718776238212,-465.6648871,0.00015374,2]
[329869564,1718776238222,-450.29927407,0.00016232,2]
[329869566,1718776238232,-300.0,0.00016233,2]
[329869568,1718776238242,-621.79881316,0.00016233,2]
[329869570,1718776238252,-481.95736068,0.00016234,2]
[329869573,1718776238264,-603.12900096,0.00016234,2]
[329869899,1718776241722,273.37336231,9.9e-05,2]
[329870024,1718776242858,-277.957082,0.00015394,2]
[329870026,1718776242868,-1813.18299447,0.00016234,2]
[329870054,1718776242997,-1925.20566376,0.00016234,2]
[329870057,1718776243009,-12307.06325965,0.00016234,2]
[329870449,1718776250036,273.37336231,9.9e-05,2]
[329870602,1718776258176,273.37336231,9.9e-05,2]
[329870603,1718776266946,273.37336231,9.9e-05,2]
[329870604,1718776275187,273.37336231,9.9e-05,2]
[329870605,1718776284293,273.37336231,9.9e-05,2]
[329870607,1718776291356,524.99625467,9.999e-05,2]
[329870608,1718776292556,273.37336231,9.9e-05,2]
[329870609,1718776293913,154.81422293,9.999e-05,2]
[329870610,1718776300510,273.37336231,9.9e-05,2]
[329870611,1718776303183,723.28183895,9.999e-05,2]
[329870612,1718776308718,273.37336231,9.9e-05,2]
[329870613,1718776309651,154.81422293,9.999e-05,2]
[329870614,1718776317339,273.37336231,9.9e-05,2]
[329870615,1718776325864,273.37336231,9.9e-05,2]
[329870616,1718776326806,775.66323362,9.999e-05,2]
[329870617,1718776333811,154.81422293,9.999e-05,2]
[329870618,1718776335071,273.37336231,9.9e-05,2]
[329870619,1718776344388,273.37336231,9.9e-05,2]
[329870620,1718776346737,216.57550044,9.999e-05,2]
[329870621,1718776352376,273.37336231,9.9e-05,2]
[329870622,1718776361869,273.37336231,9.9e-05,2]
[329870623,1718776370163,273.37336231,9.9e-05,2]
[329870624,1718776378403,273.37336231,9.9e-05,2]
[329870625,1718776386440,273.37336231,9.9e-05,2]
[329870626,1718776395620,273.37336231,9.9e-05,2]
[329870627,1718776404566,273.37336231,9.9e-05,2]
[329870628,1718776413529,273.37336231,9.9e-05,2]
[329870629,1718776421768,273.37336231,9.9e-05,2]
[329870630,1718776429947,273.37336231,9.9e-05,2]
[329870631,1718776437982,273.37336231,9.9e-05,2]
[329870632,1718776447846,273.37336231,9.9e-05,2]
[329870633,1718776456264,273.37336231,9.9e-05,2]
[329870634,1718776464411,273.37336231,9.9e-05,2]
[329870635,1718776472682,273.37336231,9.9e-05,2]
[329870636,1718776480701,273.37336231,9.9e-05,2]
[329870637,1718776489007,273.37336231,9.9e-05,2]
[329870638,1718776496962,273.37336231,9.9e-05,2]
[329870639,1718776505846,273.37336231,9.9e-05,2]
[329870640,1718776513873,273.37336231,9.9e-05,2]
[329870641,1718776522143,273.37336231,9.9e-05,2]
[329870642,1718776530834,273.37336231,9.9e-05,2]
[329870643,1718776539703,273.37336231,9.9e-05,2]
[329870644,1718776547674,273.37336231,9.9e-05,2]
[329870645,1718776556090,273.37336231,9.9e-05,2]
[329870646,1718776564514,273.37336231,9.9e-05,2]
[329870647,1718776573562,273.37336231,9.9e-05,2]
[329870648,1718776581800,273.37336231,9.9e-05,2]
[329870649,1718776590646,273.37336231,9.9e-05,2]
[329870650,1718776598750,273.37336231,9.9e-05,2]
[329870651,1718776607576,273.37336231,9.9e-05,2]
[329870652,1718776615848,273.37336231,9.9e-05,2]
[329870653,1718776623876,273.37336231,9.9e-05,2]
[329870654,1718776632524,273.37336231,9.9e-05,2]
[329870655,1718776641287,273.37336231,9.9e-05,2]
[329870656,1718776649290,273.37336231,9.9e-05,2]
[329870657,1718776658154,273.37336231,9.9e-05,2]
[329870658,1718776666408,273.37336231,9.9e-05,2]
[329870659,1718776674639,273.37336231,9.9e-05,2]
[329870660,1718776679295,1986.09484753,9.999e-05,2]
[329870661,1718776682808,273.37336231,9.9e-05,2]
[329870662,1718776691272,273.37336231,9.9e-05,2]
[329870663,1718776699790,273.37336231,9.9e-05,2]
[329870664,1718776708638,273.37336231,9.9e-05,2]
[329870665,1718776716641,273.37336231,9.9e-05,2]
[329870666,1718776725489,273.37336231,9.9e-05,2]
[329870667,1718776733509,273.37336231,9.9e-05,2]
[329870670,1718776742338,273.37336231,9.9e-05,2]
[329870671,1718776750386,273.37336231,9.9e-05,2]
[329870672,1718776759481,273.37336231,9.9e-05,2]
[329870673,1718776768866,273.37336231,9.9e-05,2]
[329870674,1718776776882,273.37336231,9.9e-05,2]
[329870675,1718776785287,273.37336231,9.9e-05,2]
[329870676,1718776793307,273.37336231,9.9e-05,2]
[329870677,1718776801616,273.37336231,9.9e-05,2]
[329870678,1718776810144,227.59040109,9.9e-05,2]
[329870693,1718777226170,-154.81422293,0.00015229,2]
[329870694,1718777247127,-649.05458159,0.00015229,2]
[329870695,1718777248273,-312.78355685,0.00015229,2]
[329870699,1718777285921,273.37336231,9.9e-05,2]
[329870700,1718777294006,273.37336231,9.9e-05,2]
[329870705,1718777354171,-62.35060173,0.00015229,2]
[329870706,1718777354193,-194.9010397,0.0001524,2]
[329870811,1718777439714,-655.00072718,0.00016139,2]
[329870813,1718777439725,-217.90344169,0.000162,2]
[329870815,1718777439736,-157.08146106,0.00016227,2]
[329870816,1718777439746,-154.98808301,0.00016227,2]
[329870817,1718777439757,-587.18101274,0.00016227,2]
[329870818,1718777439767,-300.0,0.00016228,2]
[329870819,1718777439777,-300.0,0.00016228,2]
[329870820,1718777439787,-5088.26245544,0.00016229,2]
[329870821,1718777439800,-267.45300945,0.00016229,2]
[329870822,1718777439813,-5004.44623511,0.00016229,2]
[329870823,1718777440725,-604.0,0.00016229,2]
[329870824,1718777440994,-1345.14829684,0.00016229,2]
[329870825,1718777441007,-4080.61636184,0.00016229,2]
[329870826,1718777441299,-3511.30008295,0.00016229,2]
[329871076,1718777443680,-6148.72145837,0.00016229,2]
[329871078,1718777443690,-6415.48097799,0.0001623,2]
[329871236,1718777445637,242.74835857,9.9e-05,2]
[329871239,1718777445658,30.62500374,9.9e-05,2]
[329871259,1718777446864,-1580.74020662,0.0001623,2]
[329871260,1718777446874,-159.35964632,0.00016273,3]
[329871261,1718777446884,-2268.35727739,0.00016331,2]
[329871262,1718777446894,-2268.35727736,0.00016332,2]
[329871263,1718777446903,-2268.35727736,0.00016334,2]
[329871264,1718777446912,-2268.35727736,0.00016335,2]
[329871265,1718777446921,-2268.35727736,0.00016336,2]
[329871266,1718777446934,-219.46185957,0.00016429,2]
[329871267,1718777446943,-157.87312008,0.0001643,2]
[329871268,1718777446952,-32369.16410598,0.0001643,2]
[329871269,1718777446962,-9052.82706543,0.00016431,2]
[329871270,1718777446971,-18322.27600732,0.00016431,2]
[329871271,1718777446980,-783.72016717,0.00016431,2]
[329871273,1718777446990,-170.34792105,0.00016431,2]
[329871275,1718777446999,-256.92878018,0.00016432,2]
[329871277,1718777447009,-393.09962183,0.00016432,2]
[329871279,1718777447019,-297.78990282,0.00016432,2]
[329871281,1718777447028,-932.35581824,0.00016432,2]
[329871283,1718777447038,-159.19178579,0.00016432,2]
[329871285,1718777447047,-253.19471555,0.00016432,2]
[329871287,1718777447057,-373.21903938,0.00016432,2]
[329871289,1718777447067,-318.67513585,0.00016432,2]
[329871291,1718777447076,-284.48839234,0.00016433,2]
[329871293,1718777447086,-1190.08946875,0.00016434,2]
[329871295,1718777447096,-158.6510113,0.00016434,2]
[329871297,1718777447105,-195.90872409,0.00016434,2]
[329871299,1718777447114,-156.54602138,0.00016434,2]
[329871301,1718777447124,-216.24540331,0.00016434,2]
[329871303,1718777447133,-205.28596587,0.00016434,2]
[329871305,1718777447143,-229.13533364,0.00016434,2]
[329871307,1718777447153,-210.83365112,0.00016434,2]